bitfinex-derivatives/quotes_BNBF0:USTF0_20250807
["timestamp","ask_amount","ask_price","bid_price","bid_amount"]
[1754574394257,0.86205018,774.54,773.69,0.22473579]
[1754574394461,0.89,774.9,773.69,0.22473579]
[1754574394462,0.82758199,774.53,773.69,0.22473579]
[1754574394660,0.82758199,774.52,773.69,0.22473579]
[1754574394860,0.82758199,774.51,773.69,0.22473579]
[1754574395061,0.82758199,774.5,773.69,0.22473579]
[1754574395358,0.82758199,774.49,773.69,0.22473579]
[1754574395567,0.82758199,774.48,773.69,0.22473579]
[1754574395858,0.82758199,774.47,773.69,0.22473579]
[1754574396158,0.82758199,774.46,773.69,0.22473579]
[1754574396463,0.82758199,774.45,773.69,0.22473579]
[1754574396762,0.82758199,774.44,773.69,0.22473579]
[1754574396959,0.82758199,774.43,773.69,0.22473579]
[1754574397158,0.86205018,774.57,773.69,0.22473579]
[1754574397363,0.801,774.42,773.69,0.22473579]
[1754574397559,0.82776139,774.41,773.69,0.22473579]
[1754574397759,0.82776139,774.4,773.69,0.22473579]
[1754574397964,0.82776139,774.39,773.69,0.22473579]
[1754574398263,0.82776139,774.38,773.69,0.22473579]
[1754574398463,0.82758447,774.37,773.69,0.22473579]
[1754574398661,0.82756302,774.36,773.69,0.22473579]
[1754574398961,0.801,774.42,773.69,0.22473579]
[1754574399165,0.82756302,774.41,773.69,0.22473579]
[1754574399364,0.82756302,774.4,773.69,0.22473579]
[1754574399565,0.82756302,774.39,773.69,0.22473579]
[1754574399861,0.82756302,774.38,773.69,0.22473579]
[1754574400166,0.82756302,774.37,773.69,0.22473579]
[1754574400360,0.82778923,774.36,773.69,0.22473579]
[1754574400560,0.82778923,774.35,773.69,0.22473579]
[1754574400859,0.82778923,774.34,773.69,0.22473579]
[1754574401065,0.801,774.42,773.69,0.22473579]
[1754574401265,0.82787524,774.41,773.69,0.22473579]
[1754574401465,0.82787524,774.4,773.69,0.22473579]
[1754574401666,0.82787524,774.39,773.69,0.22473579]
[1754574401965,0.82787524,774.38,773.69,0.22473579]
[1754574402164,0.82787524,774.37,773.69,0.22473579]
[1754574402368,0.82787524,774.36,773.69,0.22473579]
[1754574402666,0.82787524,774.35,773.69,0.22473579]
[1754574402862,0.82787524,774.34,773.69,0.22473579]
[1754574403070,0.801,774.42,773.69,0.22473579]
[1754574403266,0.82781113,774.41,773.69,0.22473579]
[1754574403466,0.801,774.42,773.69,0.22473579]
[1754574403663,0.82776829,774.41,773.69,0.22473579]
[1754574403863,0.801,774.42,773.69,0.22473579]
[1754574404067,0.82776829,774.41,773.69,0.22473579]
[1754574404269,0.801,774.42,773.69,0.22473579]
[1754574404564,0.8277131,774.41,773.69,0.22473579]
[1754574404768,0.801,774.42,773.69,0.22473579]
[1754574404968,0.82771982,774.41,773.69,0.22473579]
[1754574405164,0.801,774.42,773.69,0.22473579]
[1754574405465,0.82773746,774.41,773.69,0.22473579]
[1754574405669,0.82773746,774.4,773.69,0.22473579]
[1754574405869,0.82773746,774.39,773.69,0.22473579]
[1754574406164,0.801,774.42,773.69,0.22473579]
[1754574406165,0.82773746,774.38,773.69,0.22473579]
[1754574406364,0.8281832,774.37,773.69,0.22473579]
[1754574406568,0.801,774.42,773.69,0.22473579]
[1754574406768,0.82818081,774.41,773.69,0.22473579]
[1754574407069,0.82818081,774.4,773.69,0.22473579]
[1754574407366,0.82818081,774.39,773.69,0.22473579]
[1754574407571,0.82818081,774.38,773.69,0.22473579]
[1754574407872,0.801,774.42,773.69,0.22473579]
[1754574408067,0.8281046,774.41,773.69,0.22473579]
[1754574408267,0.8281046,774.4,773.69,0.22473579]
[1754574408472,0.8281046,774.39,773.69,0.22473579]
[1754574408672,0.8281046,774.38,773.69,0.22473579]
[1754574408872,0.8280767,774.37,773.69,0.22473579]
[1754574409071,0.801,774.42,773.69,0.22473579]
[1754574409270,0.82813706,774.41,773.69,0.22473579]
[1754574409468,0.82813706,774.4,773.69,0.22473579]
[1754574409670,0.86205018,774.58,773.69,0.22473579]
[1754574409868,0.82840832,774.57,773.69,0.22473579]
[1754574410172,0.82840832,774.56,773.69,0.22473579]
[1754574410372,0.82840832,774.55,773.69,0.22473579]
[1754574410573,0.82840832,774.54,773.69,0.22473579]
[1754574410874,0.82840832,774.53,773.69,0.22473579]
[1754574411173,0.82840832,774.52,773.69,0.22473579]
[1754574411473,0.82840832,774.51,773.69,0.22473579]
[1754574411669,0.82840832,774.5,773.69,0.22473579]
[1754574411869,0.82840832,774.49,773.69,0.22473579]
[1754574412072,2.8943104,775.61,773.69,0.22473579]
[1754574412073,0.82840832,774.48,773.69,0.22473579]
[1754574412272,0.82840832,774.47,773.69,0.22473579]
[1754574412470,0.82840832,774.46,773.69,0.22473579]
[1754574412773,0.86205018,774.63,773.69,0.22473579]
[1754574412968,0.82933147,774.62,773.69,0.22473579]
[1754574413270,0.82933147,774.61,773.69,0.22473579]
[1754574413469,0.82933147,774.6,773.69,0.22473579]
[1754574413669,0.82933147,774.59,773.69,0.22473579]
[1754574413877,0.82933147,774.58,773.69,0.22473579]
[1754574414075,0.82933147,774.57,773.69,0.22473579]
[1754574414375,0.82933147,774.56,773.69,0.22473579]
[1754574414571,0.82933147,774.55,773.69,0.22473579]
[1754574414772,0.82933147,774.54,773.69,0.22473579]
[1754574414971,0.82933147,774.53,773.69,0.22473579]
[1754574415176,0.82933147,774.52,773.69,0.22473579]
[1754574415575,0.82928819,774.51,773.69,0.22473579]
[1754574415872,0.82928819,774.5,773.69,0.22473579]
[1754574416172,0.82928965,774.49,773.69,0.22473579]
[1754574416372,0.82928965,774.48,773.69,0.22473579]
[1754574416671,0.82928965,774.47,773.69,0.22473579]
[1754574416875,0.82928965,774.46,773.69,0.22473579]
[1754574417075,0.82928965,774.45,773.69,0.22473579]
[1754574417277,0.82928965,774.44,773.69,0.22473579]
[1754574417574,1.83905018,774.62,773.69,0.22473579]
[1754574417773,0.82922529,774.61,773.69,0.22473579]
[1754574417977,0.82922529,774.6,773.69,0.22473579]
[1754574418174,0.82922529,774.59,773.69,0.22473579]
[1754574418376,0.82922529,774.58,773.69,0.22473579]
[1754574418578,0.82922529,774.57,773.69,0.22473579]
[1754574418779,0.82922529,774.56,773.69,0.22473579]
[1754574418978,0.82922529,774.55,773.69,0.22473579]
[1754574419275,0.82922529,774.54,773.69,0.22473579]
[1754574419474,0.82922529,774.53,773.69,0.22473579]
[1754574419675,0.82922529,774.52,773.69,0.22473579]
[1754574419877,0.82922529,774.51,773.69,0.22473579]
[1754574420079,0.82922529,774.5,773.69,0.22473579]
[1754574420276,0.82922529,774.49,773.69,0.22473579]
[1754574420476,0.82922529,774.48,773.69,0.22473579]
[1754574420783,0.82922529,774.47,773.69,0.22473579]
[1754574421081,0.82922529,774.46,773.69,0.22473579]
[1754574421278,0.82922529,774.45,773.69,0.22473579]
[1754574421482,0.977,774.62,773.69,0.22473579]
[1754574421678,0.882,774.44,773.69,0.22473579]
[1754574422182,0.882,774.44,773.7,0.86320755]
[1754574422983,0.882,774.44,773.71,0.86320755]
[1754574423381,0.882,774.44,773.75,0.86320755]
[1754574423584,0.882,774.44,773.82,0.86320755]
[1754574423984,0.882,774.44,773.83,0.86320755]
[1754574424384,0.882,774.44,773.82,0.86320755]
[1754574425086,0.882,774.44,773.83,0.86320755]
[1754574425284,0.882,774.44,773.82,0.86320755]
[1754574427286,0.882,774.44,773.81,0.86320755]
[1754574428092,0.882,774.44,773.85,0.86320755]
[1754574428695,0.882,774.44,773.85,1.72936448]
[1754574428891,0.882,774.44,773.85,0.86615693]
[1754574432397,0.882,774.44,773.84,0.86615693]
[1754574432597,0.882,774.44,773.86,0.86615693]
[1754574433500,0.882,774.44,773.87,0.86615693]
[1754574434099,0.882,774.44,773.86,0.86615693]
[1754574434601,0.882,774.44,773.87,0.86615693]
[1754574435296,0.882,774.44,773.86,0.86615693]
[1754574437601,1.087,774.43,773.86,0.86615693]
[1754574437998,1.087,774.43,773.87,0.86615693]
[1754574438198,1.087,774.43,773.86,0.86615693]
[1754574438496,1.087,774.43,773.87,0.86615693]
[1754574439804,1.087,774.43,773.86,0.86615693]
[1754574443109,1.087,774.43,773.83,0.86615693]
[1754574443307,1.087,774.43,773.69,0.22473579]
[1754574443308,1.087,774.43,773.82,0.86615693]
[1754574444007,1.087,774.43,773.81,0.86615693]
[1754574444704,1.087,774.43,773.74,0.86615693]
[1754574445106,1.087,774.43,773.75,0.86615693]
[1754574446206,1.087,774.43,773.76,0.86615693]
[1754574446613,1.087,774.43,773.75,0.86615693]
[1754574446912,1.087,774.43,773.76,0.86615693]
[1754574449009,1.087,774.43,773.72,0.86615693]
[1754574449413,1.087,774.43,773.73,0.86615693]
[1754574449609,1.087,774.43,773.74,0.86615693]
[1754574450010,1.087,774.43,773.73,0.86615693]
[1754574450409,1.087,774.43,773.74,0.86615693]
[1754574450613,1.087,774.43,773.73,0.86615693]
[1754574450817,1.087,774.43,773.75,0.86615693]
[1754574451717,1.087,774.43,773.7,0.86615693]
[1754574452715,1.087,774.43,773.69,0.22473579]
[1754574454821,1.087,774.43,773.69,1.09089272]
[1754574455423,1.087,774.43,773.7,0.86615693]
[1754574455818,1.087,774.43,773.69,0.22473579]
[1754574455819,1.087,774.43,773.69,1.09089272]
[1754574456019,1.087,774.43,773.7,0.86615693]
[1754574456219,1.087,774.43,773.71,0.86615693]
[1754574456521,1.087,774.43,773.7,0.86615693]
[1754574456720,0.86309081,774.77,773.7,0.86615693]
[1754574456927,0.83107228,774.76,773.7,0.86615693]
[1754574457125,0.83107228,774.75,773.7,0.86615693]
[1754574457325,0.83107228,774.74,773.7,0.86615693]
[1754574457525,0.83107228,774.73,773.71,0.86615693]
[1754574457723,0.83107228,774.72,773.71,0.86615693]
[1754574458021,0.86309081,774.76,773.71,0.86615693]
[1754574458022,0.83107228,774.71,773.71,0.86615693]
[1754574458225,0.83107228,774.7,773.71,0.86615693]
[1754574458425,0.83107228,774.69,773.71,0.86615693]
[1754574458725,1.50907228,774.68,773.71,0.86615693]
[1754574458925,0.83107228,774.67,773.71,0.86615693]
[1754574459434,0.83107228,774.67,773.72,0.86615693]
[1754574459930,0.83107228,774.67,773.69,0.22473579]
[1754574459931,0.86309081,774.64,773.79,0.86615693]
[1754574460432,0.86309081,774.59,773.75,0.86615693]
[1754574460832,0.83146233,774.58,773.75,0.86615693]
[1754574461031,0.83146233,774.57,773.75,0.86615693]
[1754574461232,0.83146233,774.56,773.75,0.86615693]
[1754574461432,0.83146233,774.55,773.76,0.86615693]
[1754574461732,0.83146233,774.54,773.77,0.86615693]
[1754574461931,0.83146233,774.53,773.76,0.86615693]
[1754574462132,0.83146233,774.52,773.74,0.86615693]
[1754574462331,0.83146233,774.51,773.74,0.86615693]
[1754574462533,0.83146233,774.5,773.69,0.22473579]
[1754574462730,0.83146233,774.49,773.69,0.22473579]
[1754574462935,0.83146233,774.48,773.69,0.22473579]
[1754574463136,0.86309081,774.52,773.69,0.22473579]
[1754574463432,0.83161623,774.51,773.69,0.22473579]
[1754574464437,0.86309081,774.48,773.69,0.22473579]
[1754574464736,0.86309081,774.45,773.69,0.22473579]
[1754574464931,1.69470704,774.44,773.69,0.22473579]
[1754574465136,0.83161623,774.43,773.69,0.22473579]
[1754574465432,0.83161623,774.42,773.69,0.22473579]
[1754574465632,0.83161623,774.41,773.69,0.22473579]
[1754574465933,0.83161623,774.4,773.69,0.22473579]
[1754574466138,0.83161623,774.39,773.69,0.22473579]
[1754574466339,0.83161623,774.38,773.69,0.22473579]
[1754574466539,0.83161623,774.37,773.69,0.22473579]
[1754574466740,0.83161623,774.36,773.69,0.22473579]
[1754574466939,0.83161623,774.35,773.69,0.22473579]
[1754574467139,0.83161623,774.34,773.69,0.22473579]
[1754574467440,0.83161623,774.33,773.69,0.22473579]
[1754574467736,0.83161623,774.32,773.69,0.22473579]
[1754574467935,0.86309081,774.45,773.69,0.22473579]
[1754574468141,0.83058258,774.44,773.69,0.22473579]
[1754574468439,0.83058258,774.43,773.69,0.22473579]
[1754574468641,0.83058258,774.42,773.69,0.22473579]
[1754574468838,0.83058258,774.41,773.69,0.22473579]
[1754574469037,0.83058258,774.4,773.69,0.22473579]
[1754574469239,0.86309081,774.46,773.69,0.22473579]
[1754574469435,0.83046286,774.45,773.69,0.22473579]
[1754574469640,0.83046286,774.44,773.69,0.22473579]
[1754574469939,0.83046286,774.43,773.69,0.22473579]
[1754574470139,0.83046286,774.42,773.69,0.22473579]
[1754574470334,0.83044403,774.41,773.69,0.22473579]
[1754574470535,0.83044403,774.4,773.69,0.22473579]
[1754574470836,0.83044403,774.39,773.69,0.22473579]
[1754574471035,1.15769839,774.67,773.69,0.22473579]
[1754574471036,0.83044403,774.38,773.69,0.22473579]
[1754574471336,0.83043126,774.37,773.69,0.22473579]
[1754574471636,0.86309081,774.56,773.69,0.22473579]
[1754574471842,0.83046435,774.55,773.69,0.22473579]
[1754574472038,0.83046435,774.54,773.69,0.22473579]
[1754574472336,0.86309081,774.49,773.7,0.86615693]
[1754574472537,0.83046435,774.48,773.69,1.09089272]
[1754574472733,0.83046435,774.48,773.7,0.86615693]
[1754574472936,0.83046435,774.48,773.69,1.09089272]
[1754574473137,0.83046435,774.47,773.73,0.86615693]
[1754574473337,2.48509081,774.68,773.84,0.86615693]
[1754574473538,0.83071999,774.67,773.86,0.86615693]
[1754574473739,0.83071999,774.66,773.86,0.86615693]
[1754574473941,0.83071999,774.65,773.87,0.86615693]
[1754574474141,0.83071999,774.64,773.87,0.86615693]
[1754574474443,0.83071999,774.63,773.86,0.86615693]
[1754574474640,0.83071999,774.62,773.86,0.86615693]
[1754574474944,0.83071999,774.61,773.86,0.86615693]
[1754574475142,0.83071999,774.6,773.86,0.86615693]
[1754574475342,0.83071999,774.59,773.87,0.86615693]
[1754574475542,0.86309081,774.67,773.87,0.86615693]
[1754574475543,0.83071999,774.58,773.87,0.86615693]
[1754574475741,0.83071999,774.57,773.86,0.86615693]
[1754574475940,2.48509081,774.68,773.86,0.86615693]
[1754574476241,0.83115087,774.67,773.86,0.86615693]
[1754574476441,0.83115087,774.66,773.86,0.86615693]
[1754574476643,0.83115087,774.65,773.85,0.86615693]
[1754574478345,0.83115087,774.65,773.87,0.86615693]
[1754574478643,0.83122941,774.64,773.87,0.86615693]
[1754574478841,0.83122941,774.63,773.88,0.86615693]
[1754574479041,0.83122947,774.62,773.88,0.86615693]
[1754574479340,0.678,774.68,773.88,0.86615693]
[1754574479341,0.83122947,774.61,773.88,0.86615693]
[1754574479545,0.83122947,774.6,773.88,0.86615693]
[1754574479745,0.83122947,774.59,773.88,0.86615693]
[1754574480041,1.67822947,774.58,773.89,0.86615693]
[1754574480241,0.83122947,774.57,773.89,0.86615693]
[1754574480842,0.847,774.58,773.9,0.86615693]
[1754574481045,0.83129387,774.57,773.9,0.86615693]
[1754574481341,0.847,774.58,773.9,0.86615693]
[1754574481545,0.83129387,774.57,773.9,0.86615693]
[1754574481743,0.847,774.58,773.9,0.86615693]
[1754574481946,0.83131512,774.57,773.9,0.86615693]
[1754574482146,0.847,774.58,773.9,0.86615693]
[1754574482348,0.83129311,774.57,773.9,0.86615693]
[1754574482546,0.847,774.58,773.9,0.86615693]
[1754574482746,0.83127836,774.57,773.9,0.86615693]
[1754574482946,0.83127836,774.56,773.9,0.86615693]
[1754574483144,0.847,774.58,773.9,0.86615693]
[1754574483349,0.831251,774.57,773.89,0.86615693]
[1754574483552,0.847,774.58,773.89,0.86615693]
[1754574483851,0.847,774.58,773.88,0.86615693]
[1754574484346,0.83123751,774.57,773.88,0.86615693]
[1754574484650,0.847,774.58,773.88,0.86615693]
[1754574484846,0.83125929,774.57,773.88,0.86615693]
[1754574485047,0.83125935,774.56,773.89,0.86615693]
[1754574485251,0.847,774.58,773.9,0.86615693]
[1754574485445,1.029,774.55,773.87,0.86615693]
[1754574485648,1.029,774.55,773.85,0.86615693]
[1754574485950,1.029,774.55,773.83,0.86615693]
[1754574486147,1.89209081,774.55,773.79,0.86615693]
[1754574486347,0.86309081,774.53,773.76,0.86615693]
[1754574487749,0.86309081,774.5,773.73,0.86615693]
[1754574487948,0.86309081,774.53,773.71,0.86615693]
[1754574488154,0.86309081,774.5,773.69,0.22473579]
[1754574488349,0.86309081,774.51,773.69,0.22473579]
[1754574488648,0.86309081,774.5,773.69,0.22473579]
[1754574488853,0.86309081,774.52,773.69,0.22473579]
[1754574489054,0.86309081,774.51,773.69,1.09089272]
[1754574489350,0.86309081,774.52,773.69,0.22473579]
[1754574492957,0.83134398,774.51,773.69,0.22473579]
[1754574493156,0.86309081,774.52,773.69,0.22473579]
[1754574493157,0.83134398,774.5,773.69,0.22473579]
[1754574493357,0.83134398,774.49,773.69,0.22473579]
[1754574493558,0.83134398,774.48,773.69,0.22473579]
[1754574493857,0.86309081,774.51,773.69,0.22473579]
[1754574493858,0.83134398,774.47,773.69,0.22473579]
[1754574494054,0.83134398,774.46,773.69,0.22473579]
[1754574494259,1.69443479,774.45,773.69,0.22473579]
[1754574494558,0.86309081,774.45,773.69,0.22473579]
[1754574495056,0.83130222,774.44,773.69,0.22473579]
[1754574495256,0.83130222,774.43,773.69,0.22473579]
[1754574495455,0.83130222,774.42,773.69,0.22473579]
[1754574495756,0.86309081,774.46,773.69,0.22473579]
[1754574495959,0.83124932,774.45,773.69,0.22473579]
[1754574496256,0.83124932,774.44,773.69,0.22473579]
[1754574496461,0.83124932,774.43,773.69,0.22473579]
[1754574496657,0.83124932,774.42,773.69,0.22473579]
[1754574496957,0.83124932,774.41,773.69,0.22473579]
[1754574497157,0.86309081,774.46,773.69,0.22473579]
[1754574497357,0.83148158,774.45,773.69,0.22473579]
[1754574497556,0.83148158,774.44,773.69,0.22473579]
[1754574497760,0.83148158,774.43,773.69,0.22473579]
[1754574497961,0.83148158,774.42,773.69,0.22473579]
[1754574498158,0.83148158,774.41,773.69,0.22473579]
[1754574498358,0.83148158,774.4,773.69,0.22473579]
[1754574498563,0.86309081,774.47,773.69,0.22473579]
[1754574498863,0.83132193,774.46,773.69,0.22473579]
[1754574499062,0.83132193,774.45,773.69,0.22473579]
[1754574499264,0.83132193,774.44,773.69,0.22473579]
[1754574499459,0.83132193,774.43,773.69,0.22473579]
[1754574499660,0.83132193,774.42,773.69,0.22473579]
[1754574499860,0.83132193,774.41,773.69,0.22473579]
[1754574500060,0.83132193,774.4,773.69,0.22473579]
[1754574500364,0.86309081,774.46,773.69,0.22473579]
[1754574500559,0.8313578,774.45,773.69,0.22473579]
[1754574500761,0.8313578,774.44,773.69,0.22473579]
[1754574500959,0.8313578,774.43,773.69,0.22473579]
[1754574501264,0.8313578,774.42,773.69,0.22473579]
[1754574501462,0.8313578,774.41,773.69,0.22473579]
[1754574501666,0.8313578,774.4,773.69,0.22473579]
[1754574501862,0.8313578,774.39,773.69,0.22473579]
[1754574502063,0.83122659,774.38,773.69,0.22473579]
[1754574502366,0.83122659,774.37,773.69,0.22473579]
[1754574502566,0.83122659,774.36,773.69,0.22473579]
[1754574502766,0.83122659,774.35,773.69,0.22473579]
[1754574502962,0.83122659,774.34,773.69,0.22473579]
[1754574503163,0.83122659,774.33,773.69,0.22473579]
[1754574503368,0.86309081,774.54,773.69,0.22473579]
[1754574503569,0.83132319,774.53,773.69,0.22473579]
[1754574503864,0.83132319,774.52,773.69,0.22473579]
[1754574504167,0.83132319,774.51,773.69,0.22473579]
[1754574504363,0.83132319,774.5,773.69,0.22473579]
[1754574504565,0.83132319,774.49,773.69,0.22473579]
[1754574504764,0.83132319,774.48,773.69,0.22473579]
[1754574504967,0.83132319,774.47,773.69,0.22473579]
[1754574505166,0.86309081,774.54,773.69,0.22473579]
[1754574505370,0.83133984,774.53,773.69,0.22473579]
[1754574505568,0.83133984,774.52,773.69,0.22473579]
[1754574505767,0.83135451,774.51,773.69,0.22473579]
[1754574505972,0.83135451,774.5,773.69,0.22473579]
[1754574506169,0.83135451,774.49,773.69,0.22473579]
[1754574506469,0.83135451,774.48,773.69,0.22473579]
[1754574506672,0.83135451,774.47,773.7,0.86615693]
[1754574506868,0.83135451,774.46,773.7,0.86615693]
[1754574507068,0.83135451,774.45,773.69,1.09089272]
[1754574507267,0.83135451,774.44,773.69,1.09089272]
[1754574507468,0.83135451,774.43,773.7,0.86615693]
[1754574507671,0.83135451,774.42,773.7,0.86615693]
[1754574507869,0.83135451,774.41,773.7,0.86615693]
[1754574508075,0.83135451,774.4,773.69,1.09089272]
[1754574508268,0.83135451,774.39,773.71,0.86615693]
[1754574508568,0.86309081,774.49,773.71,0.86615693]
[1754574508874,0.83136719,774.48,773.7,0.86615693]
[1754574509172,0.86309081,774.45,773.69,0.22473579]
[1754574509370,0.83136719,774.44,773.69,0.22473579]
[1754574509570,0.83136719,774.43,773.69,0.22473579]
[1754574509770,0.83136719,774.42,773.69,0.22473579]
[1754574509968,0.83136719,774.41,773.69,0.22473579]
[1754574510173,0.83136719,774.4,773.69,0.22473579]
[1754574510473,0.83136719,774.39,773.69,0.22473579]
[1754574510672,0.83136719,774.38,773.69,0.22473579]
[1754574510971,0.83136719,774.37,773.69,0.22473579]
[1754574511173,0.86309081,774.46,773.69,0.22473579]
[1754574511371,0.83090447,774.45,773.69,0.22473579]
[1754574511575,0.83090447,774.44,773.69,0.22473579]
[1754574511772,0.83090447,774.43,773.69,0.22473579]
[1754574511974,0.83090447,774.42,773.69,0.22473579]
[1754574512271,0.83090447,774.41,773.69,0.22473579]
[1754574512471,0.83090447,774.4,773.69,0.22473579]
[1754574512674,0.83090447,774.39,773.69,0.22473579]
[1754574512875,0.83090447,774.38,773.69,0.22473579]
[1754574513072,0.86309081,774.51,773.69,0.22473579]
[1754574513272,1.69396022,774.5,773.69,0.22473579]
[1754574513472,0.83086941,774.49,773.69,0.22473579]
[1754574513670,0.83086941,774.48,773.69,0.22473579]
[1754574513876,0.83086941,774.47,773.69,0.22473579]
[1754574514074,0.83086941,774.46,773.69,0.22473579]
[1754574514274,0.83090081,774.45,773.69,0.22473579]
[1754574514474,0.83090758,774.44,773.69,0.22473579]
[1754574514774,0.83090758,774.43,773.69,0.22473579]
[1754574514974,0.83091357,774.42,773.69,0.22473579]
[1754574515173,0.83091357,774.41,773.69,0.22473579]
[1754574515374,0.83091357,774.4,773.69,0.22473579]
[1754574515578,0.83091357,774.39,773.69,0.22473579]
[1754574515782,0.83091357,774.38,773.69,0.22473579]
[1754574515978,0.83098084,774.37,773.69,0.22473579]
[1754574516178,0.955,774.45,773.69,0.22473579]
[1754574516383,0.83096923,774.44,773.69,0.22473579]
[1754574516682,0.83096923,774.43,773.69,0.22473579]
[1754574516880,0.83096923,774.42,773.69,0.22473579]
[1754574517081,0.83096923,774.41,773.69,0.22473579]
[1754574517282,0.83096923,774.4,773.69,0.22473579]
[1754574517484,0.83098323,774.39,773.69,0.22473579]
[1754574517685,0.955,774.45,773.69,0.22473579]
[1754574517978,0.83099827,774.44,773.69,0.22473579]
[1754574518184,0.83099827,774.43,773.69,1.09089272]
[1754574518483,0.83099827,774.42,773.69,1.09089272]
[1754574518779,0.83099827,774.41,773.69,1.09089272]
[1754574518984,0.955,774.45,773.69,1.09089272]
[1754574519178,0.83109305,774.44,773.69,1.09089272]
[1754574519379,0.83109305,774.43,773.72,0.86615693]
[1754574519684,0.83109305,774.42,773.77,0.86615693]
[1754574519985,0.955,774.45,773.77,0.86615693]
[1754574520184,0.955,774.45,773.76,0.86615693]
[1754574520478,0.955,774.45,773.77,0.86615693]
[1754574522389,0.955,774.45,773.78,0.86615693]
[1754574523987,0.83110392,774.44,773.77,0.86615693]
[1754574524185,0.955,774.45,773.77,0.86615693]
[1754574524389,0.955,774.45,773.76,0.86615693]
[1754574524689,0.955,774.45,773.74,0.86615693]
[1754574525286,0.83116372,774.44,773.74,0.86615693]
[1754574525489,0.955,774.45,773.74,0.86615693]
[1754574525785,0.8311601,774.44,773.74,0.86615693]
[1754574525987,0.955,774.45,773.74,0.86615693]
[1754574526186,0.83116008,774.44,773.74,0.86615693]
[1754574526386,0.955,774.45,773.71,0.86615693]
[1754574526889,0.955,774.45,773.72,0.86615693]
[1754574527288,0.83123276,774.44,773.72,0.86615693]
[1754574527491,0.83115028,774.43,773.73,0.86615693]
[1754574527691,0.83115028,774.42,773.71,0.86615693]
[1754574527888,0.83115028,774.41,773.69,0.22473579]
[1754574528191,0.83115028,774.4,773.69,0.22473579]
[1754574528386,0.83115028,774.39,773.69,0.22473579]
[1754574528593,0.83115028,774.38,773.69,0.22473579]
[1754574531093,0.83115028,774.38,773.71,0.86615693]
[1754574531593,0.83115028,774.38,773.73,0.86615693]
[1754574531994,0.83115028,774.38,773.71,0.86615693]
[1754574532390,0.83115028,774.38,773.72,0.86615693]
[1754574532796,0.712,774.39,773.72,0.86615693]
[1754574533195,0.712,774.39,773.79,0.86615693]
[1754574533592,0.712,774.39,773.8,0.86615693]
[1754574533795,0.712,774.39,773.69,0.22473579]
[1754574533796,0.712,774.39,773.83,0.86615693]
[1754574533994,0.712,774.39,773.84,0.86615693]
[1754574535398,0.712,774.39,773.85,0.86615693]
[1754574536804,0.712,774.39,773.84,0.86615693]
[1754574537300,0.712,774.39,773.9,0.86615693]
[1754574540500,0.712,774.39,773.93,0.86615693]
[1754574541403,0.712,774.39,773.99,0.86615693]
[1754574541603,0.712,774.39,773.82,1.14721409]
[1754574541604,0.712,774.39,773.97,0.86615693]
[1754574542499,0.712,774.39,773.96,0.86615693]
[1754574543404,0.712,774.39,773.95,0.86615693]
[1754574545307,0.712,774.39,773.98,0.86615693]
[1754574545603,0.712,774.39,773.99,0.86615693]
[1754574546003,0.712,774.39,774.0,0.86615693]
[1754574546607,0.712,774.39,773.98,0.86615693]
[1754574546902,0.712,774.39,774.09,0.86615693]
[1754574547306,0.712,774.39,774.2,0.86615693]
[1754574547501,0.712,774.39,774.17,0.86615693]
[1754574548007,0.712,774.39,774.18,0.86615693]
[1754574548308,0.712,774.39,774.25,0.86615693]
[1754574549203,0.712,774.39,774.24,0.86615693]
[1754574549602,0.712,774.39,774.22,0.86615693]
[1754574550411,0.712,774.39,774.25,0.86615693]
[1754574550605,0.712,774.39,774.26,0.86615693]
[1754574550810,0.712,774.39,774.27,0.86615693]
[1754574551511,0.712,774.39,774.25,0.86615693]
[1754574552413,0.712,774.39,774.24,0.86615693]
[1754574552613,0.712,774.39,774.23,0.86615693]
[1754574553315,0.712,774.39,774.22,0.86615693]
[1754574553515,0.712,774.39,774.21,0.86615693]
[1754574553712,0.712,774.39,774.22,0.86615693]
[1754574554116,0.712,774.39,774.21,0.86615693]
[1754574554517,0.712,774.39,774.19,0.86615693]
[1754574555517,0.712,774.39,774.2,0.86615693]
[1754574555714,0.955,774.45,774.19,0.86615693]
[1754574556417,0.955,774.45,774.18,0.86615693]
[1754574556617,0.955,774.45,774.19,0.86615693]
[1754574557419,0.955,774.45,774.18,0.86615693]
[1754574557618,0.955,774.45,774.17,0.86615693]
[1754574558320,0.947,774.44,774.17,0.86615693]
[1754574559014,0.947,774.44,774.18,0.86615693]
[1754574559414,0.947,774.44,774.17,0.86615693]
[1754574559814,0.947,774.44,773.83,1.7319066]
[1754574559815,0.947,774.44,774.16,0.86615693]
[1754574560115,0.947,774.44,774.17,0.86615693]
[1754574560319,0.947,774.44,774.15,0.86615693]